Workbook

Sheet 1) Kumulativní rozpočet
I1: verze 30. 9. 2025
B2: NPŽP - Kumulativní rozpočet projektu
C3: Editujte pouze zelená pole nebo použijte výběrová tlačítka | D3: Důležité informace jsou označeny v komentáři u daných buněk.
B5: Název žadatele:
B6: Název projektu:
B8: DPH uznatelnost:
B10: Souhrnný rozpočet
D11: Výdaje bez DPH | E11: DPH % | F11: Výdaje s DPH | G11: Nezpůsobilá část z celkových výdajů stanovená žadatelem (bez DPH) | H11: Nezpůsobilá část celkem | I11: Způsobilé výdaje po zohlednění limitů způsobilých nákladů a způsobilosti DPH
B12: Realizace | C12: Výdaje na realizaci | E12: 21 | F12: =D12*(1+(E12/100)) -> 0 | G12: 0 | H12: =CHOOSE('KR zdroj'!$P$26,G12*(1+('1) Kumulativní rozpočet'!E12/100)),D12*(E12/100)+G12,G12*(1+('1) Kumulativní rozpočet'!E12/100)),"vyber uznatelnost DPH") -> 0 | I12: =IFERROR(F12-H12,"zadej výdaje/uznatelnost DPH") -> 0
C13: Celkem | D13: =SUM(D12:D12) -> 0 | F13: =SUM(F12:F12) -> 0 | H13: =SUM(H12:H12) -> 0 | I13: =IFERROR(I12,"zadej výdaje/uznatelnost DPH") -> 0 | J13: = Celk. zp. výdaje (realizace)
I14: =IFERROR(I12,"zadej výdaje/uznatelnost DPH") -> 0 | J14: = Celk. zp. přímé realizační výdaje
I15: =IFERROR(I14*'KR zdroj'!P30,0) -> 0 | J15: moje ctrl - vymazat
I16: =CHOOSE('KR zdroj'!$P$26,$D$17,$D$17*(1+($E$12/100)),$D$17,0) -> 0
B17: PP + TDI + AD + BOZP + publicita | C17: Nepřímé výdaje | D17: =IF(OR(J17<=15000000,J17="zadej výdaje/uznatelnost DPH"),J17,15000000) -> 0 | J17: =IFERROR('KR zdroj'!P32*'1) Kumulativní rozpočet'!I14,"zadej výdaje/uznatelnost DPH") -> 0
D19: =CHOOSE('KR zdroj'!P2,0,0,0,0,0,'1) Kumulativní rozpočet'!D18,'1) Kumulativní rozpočet'!D18,'1) Kumulativní rozpočet'!D18,'1) Kumulativní rozpočet'!D18,'1) Kumulativní rozpočet'!D18,'1) Kumulativní rozpočet'!D18,'1) Kumulativní rozpočet'!D18,'1) Kumulativní rozpočet'!D18,'1) Kumulativní rozpočet'!D18,0,'1) Kumulativní rozpočet'!D18,'1) Kumulativní rozpočet'!D18,0,0,'1) Kumulativní rozpočet'!D18) -> 0 | F19: =(D19)*(1+(E12/100)) -> 0 | H19: =CHOOSE('KR zdroj'!P2,0,0,0,0,0,'1) Kumulativní rozpočet'!H18,'1) Kumulativní rozpočet'!H18,'1) Kumulativní rozpočet'!H18,'1) Kumulativní rozpočet'!H18,'1) Kumulativní rozpočet'!H18,'1) Kumulativní rozpočet'!H18,'1) Kumulativní rozpočet'!H18,'1) Kumulativní rozpočet'!H18,'1) Kumulativní rozpočet'!H18,0,'1) Kumulativní rozpočet'!H18,'1) Kumulativní rozpočet'!H18,0,0,'1) Kumulativní rozpočet'!H18) -> 0 | I19: 0
B20: =IF(D20="zadej výdaje/DPH",0,D20) -> 0 | C20: Celkové výdaje projektu | D20: =IFERROR(IF(F13+I16+F19=0,"zadej výdaje/DPH",F13+I16+F19),"zadej výdaje/DPH") -> zadej výdaje/DPH
C21: Celkové způsobilé výdaje projektu | D21: =IFERROR(IF(ROUND(I13+D17+I19,0)=0,"zadej výdaje/DPH",ROUND(I13+D17+I19,0)),"zadej výdaje/DPH") -> zadej výdaje/DPH | G21: Komentář ke stanoveným nezpůsobilým výdajům:
C22: Celkové nezpůsobilé výdaje projektu | D22: =IFERROR(ROUND(D20-D21,0),"zadej výdaje/DPH") -> zadej výdaje/DPH | G22: zde vepište případný komentář k nezpůsobilým výdajům
C27: Zpracoval | D27: ……………………………….. | E27: =TODAY() -> 2025-12-05
C35: Opatření - vyberte všechna další Opatření na projektu
B36: hlavní Opatření dle KR | C36: Vyber nejprve Specifický cíl a poté hlavní Opatření projektu
C37: vyber Opatření #2 | F37: =IF(C36=C37,"Duplicita Opatření","") -> 
C38: vyber Opatření #3 | F38: =IF(OR(C36=C38,C37=C38),"Duplicita Opatření","") -> 
C39: vyber Opatření #4 | F39: =IF(OR(C39=C38,C39=C37,C39=C36),"Duplicita Opatření","") -> 
C40: vyber Opatření #5 | F40: =IF(OR(C38=C40,C40=C39,C40=C37,C40=C36),"Duplicita Opatření","") -> 
C41: vyber Opatření #6 | F41: =IF(OR(C41=C40,C41=C39,C41=C38,C41=C37,C41=C36),"Duplicita Opatření","") -> 
C42: vyber Opatření #7 | F42: =IF(OR(C42=C41,C42=C40,C42=C39,C42=C38,C42=C37,C42=C36),"Duplicita Opatření","") -> 
C43: vyber Opatření #8 | F43: =IF(OR($C$41=C43,$C$42=C43,$C$40=C43,$C$39=C43,$C$38=C43,$C$37=C43,$C$36=C43),"Duplicita Opatření","") -> 
C44: vyber Opatření #9 | F44: =IF(OR($C$43=C44,$C$41=C44,$C$42=C44,$C$40=C44,$C$39=C44,$C$38=C44,$C$37=C44,$C$36=C44),"Duplicita Opatření","") -> 
C45: vyber Opatření #10 | F45: =IF(OR($C$44=C45,$C$43=C45,$C$41=C45,$C$42=C45,$C$40=C45,$C$39=C45,$C$38=C45,$C$37=C45,$C$36=C45),"Duplicita Opatření","") -> 
C46: vyber Opatření #11 | F46: =IF(OR(C45=C46,$C$44=C46,$C$43=C46,$C$41=C46,$C$42=C46,$C$40=C46,$C$39=C46,$C$38=C46,$C$37=C46,$C$36=C46),"Duplicita Opatření","") -> 
C48: Aktivity - vyberte všechny další Aktivity na projektu
B49: hlavní Aktivita z KR | C49: irelevantní
C50: vyber Aktivitu #2 | G50: =IF(C50=C49,"Duplicita Aktivit","") -> 
C51: vyber Aktivitu #3 | G51: =IF(OR(C51=$C$50,C51=$C$49),"Duplicita Aktivit","") -> 
C52: vyber Aktivitu #4 | G52: =IF(OR(C52=$C$51,C52=$C$50,C52=$C$49),"Duplicita Aktivit","") -> 
C53: vyber Aktivitu #5 | G53: =IF(OR(C53=$C$52,C53=$C$51,C53=$C$50,C53=$C$49),"Duplicita Aktivit","") -> 
C55: Podaktivity - vyberte všechny další Podaktivity na projektu
B56: hlavní Podaktivita z KR | C56: irelevantní
C57: vyber Podaktivitu #2 | H57: =IF(C57=C56,"Duplicita Podaktivit","") -> 
C58: vyber Podaktivitu #3 | H58: =IF(OR(C58=C57,C58=C56),"Duplicita Podaktivit","") -> 
C59: vyber Podaktivitu #4 | H59: =IF(OR(C59=C58,C59=C57,C59=C56),"Duplicita Podaktivit","") -> 

Sheet KR zdroj (hidden)
A1: =OR(C10=2,C10=3,C10=5,C10=6,C10=11) -> FALSE | C1: 1 | D1: Vyber Specifický cíl | L1: =CHOOSE($C$1,1,0,0,0,0,0,0) -> 1 | M1: Vyber nejprve Specifický cíl a poté hlavní Opatření projektu | N1: 1_1 | R1: paušál PP
A2: =AND(A1=TRUE,C1=6) -> FALSE | C2: 2 | D2: 1.1 Podpora energetické účinnosti a snižování emisí skleníkových plynů | L2: 1 | M2: 1.1.1 Snížení energetické náročnosti veřejných budov a veřejné infrastruktury | N2: 2_1 | O2: =IF(OR(AND(P2>5,P2<15),P2=16,P2=17,P2=20),1,0) -> 0 | P2: 1 | Q2: mimo Veřejnou podporu | R2: 1
D3: 1.2 Podpora energie z obnovitelných zdrojů v souladu se směrnicí (EU) 2018/2001, včetně kritérií udržitelnosti stanovených v uvedené směrnici | L3: 2 | M3: 1.1.2 Snížení energetické náročnosti/zvýšení účinnosti technologických procesů | N3: 2_2 | Q3: de minimis 360/2012 | R3: 2
D4: 1.3 Podpora přizpůsobení se změně klimatu, prevence rizika katastrof a odolnosti vůči nim s přihlédnutím k ekosystémovým přístupům | L4: 3 | M4: 1.1.3 Zlepšení kvality vnitřního prostředí veřejných budov | N4: 2_3 | Q4: de minimis 1407/2013 | R4: 3
D5: 1.4 Podpora přístupu k vodě a udržitelného hospodaření s vodou | L5: 4 | M5: 1.1.4 Zvýšení adaptability veřejných budov na změnu klimatu | N5: 2_4 | Q5: de minimis 1408/2013 | R5: 4
D6: 1.5 Podpora přechodu na oběhové hospodářství účinně využívající zdroje | L6: 5 | M6: 1.1.5 Výstavba nových veřejných budov, které budou splňovat parametry pro pasivní nebo plusové budovy | N6: 2_5 | Q6: de minimis 717/2014 | R6: 5
D7: 1.6 Posilování ochrany a zachování přírody, biologické rozmanitosti a zelené infrastruktury, a to i v městských oblastech, a snižování všech forem znečištění | L7: 6 | M7: 1.2.1 Výstavba a rekonstrukce obnovitelných zdrojů energie pro veřejné budovy | N7: 3_1 | Q7: GBER článek 14
L8: 7 | M8: 1.2.2 Výstavba a rekonstrukce obnovitelných zdrojů energie pro zajištění dodávek systémové energie ve veřejném sektoru | N8: 3_2 | Q8: GBER ŽP článek 36
L9: 8 | M9: 1.2.3 Výměna nevyhovujících spalovacích zdrojů na tuhá paliva a pořizování domovních předávacích stanic | N9: 3_3 | Q9: GBER ŽP článek 38
C10: 4 | D10: =CHOOSE($C$1,$M$1,M2,M7,M10,M20,M25,M36) -> Vyber nejprve Specifický cíl a poté hlavní Opatření projektu | L10: 9 | M10: 1.3.1 Podpora přírodě blízkých opatření v krajině a sídlech | N10: 4_1 | Q10: GBER ŽP článek 40
D11: =CHOOSE($C$1,$M$1,M3,M8,M11,M21,M26,M37) -> Vyber nejprve Specifický cíl a poté hlavní Opatření projektu | L11: 10 | M11: 1.3.2 Zpracování studií a plánů (studie systémů sídelní zeleně, územní studie krajiny, plán územního systému ekologické stability) | N11: 4_2 | Q11: GBER ŽP článek 41
D12: =CHOOSE($C$1,$M$1,M4,M9,M12,M22,M27,M38) -> Vyber nejprve Specifický cíl a poté hlavní Opatření projektu | L12: 11 | M12: 1.3.3 Realizace protipovodňových opatření | N12: 4_3 | Q12: GBER ŽP článek 45
D13: =CHOOSE($C$1,$M$1,M5,"irelevantní",M13,M23,M28,M39) -> Vyber nejprve Specifický cíl a poté hlavní Opatření projektu | L13: 12 | M13: 1.3.4 Realizace opatření ke zpomalení odtoku, pro vsak, retenci a akumulaci srážkové vody vč. jejího dalšího využití; realizace zelených střech; opatření na využití šedé vody; opatření pro řízenou dotaci podzemních vod | N13: 4_4 | Q13: GBER ŽP článek 46
D14: =CHOOSE($C$1,$M$1,M6,"irelevantní",M14,M24,M29,M40) -> Vyber nejprve Specifický cíl a poté hlavní Opatření projektu | L14: 13 | M14: 1.3.5 Podpora preventivních opatření proti povodním a suchu, zejména budování, rozšíření, zkvalitnění a obnova monitorovacích, předpovědních, hlásných, výstražných a varovných systémů; zpracování digitálních povodňových plánů, zpracování analýzy odtokových poměrů | N14: 4_5 | Q14: GBER ŽP článek 47
D15: =CHOOSE($C$1,$M$1,"irelevantní","irelevantní",M15,"irelevantní",M30,M41) -> Vyber nejprve Specifický cíl a poté hlavní Opatření projektu | I15: kurz euro Kč | L15: 14 | M15: 1.3.6 Podpora povodňové operativy, zvyšování povědomí obyvatel o povodňovém riziku, zvyšování resilience citlivých objektů před povodněmi | N15: 4_6 | Q15: GBER ŽP článek 49
D16: =CHOOSE($C$1,$M$1,"irelevantní","irelevantní",M16,"irelevantní",M31,M42) -> Vyber nejprve Specifický cíl a poté hlavní Opatření projektu | I16: 24.739 | L16: 15 | M16: 1.3.7 Monitoring a rebilance dlouhodobě využitelných zdrojů podzemních vod pro obce v krystaliniku Českého masivu | N16: 4_7 | Q16: GBER článek 53, kulturní infrastruktura | R16: 15
D17: =CHOOSE($C$1,$M$1,"irelevantní","irelevantní",M17,"irelevantní",M32,M43) -> Vyber nejprve Specifický cíl a poté hlavní Opatření projektu | L17: 16 | M17: 1.3.8 Obnova stability svahů, stabilizace a sanace extrémních svahových nestabilit vzniklých v důsledku přírodních jevů | N17: 4_8 | Q17: GBER článek 55, sportovní infrastruktura
D18: =CHOOSE($C$1,$M$1,"irelevantní","irelevantní",M18,"irelevantní",M33,"irelevantní") -> Vyber nejprve Specifický cíl a poté hlavní Opatření projektu | L18: 17 | M18: 1.3.9 Investice do modernizace vzdělávacích environmentálních center zaměřených na změnu klimatu | N18: 4_9 | Q18: GBER článek 56, lokální infrastruktura
D19: =CHOOSE($C$1,$M$1,"irelevantní","irelevantní",M19,"irelevantní",M34,"irelevantní") -> Vyber nejprve Specifický cíl a poté hlavní Opatření projektu | L19: 18 | M19: 1.3.10 Prevence a řízení antropogenních rizik | N19: 4_10 | Q19: SGEI Rozhodnutí Komise | R19: 18
D20: =CHOOSE($C$1,$M$1,"irelevantní","irelevantní","irelevantní","irelevantní",M35,"irelevantní") -> Vyber nejprve Specifický cíl a poté hlavní Opatření projektu | L20: 19 | M20: 1.4.1 Výstavba čistíren odpadních vod; dobudování a výstavba kanalizaci | N20: 5_1 | Q20: SGEI Nařízení Evropského parlamentu a Rady (ES) č. 1370/2007 – Doprava | R20: 19
L21: 20 | M21: 1.4.2 Intenzifikace čistíren odpadních vod za účelem zvýšeného odstraňování specifického znečištění | N21: 5_2 | Q21: Pokyny AGRI, Prevence škod způsobených zvláště chráněnými živočišnými druhy
L22: 21 | M22: 1.4.3 Opatření omezující vypouštění odpadních vod z odlehčení na kanalizaci (akumulační nádrže, retenční nádrže, chemické předčištění apod.) | N22: 5_3
B23: =IF(AND(C1=4,C10=1),9,IF(AND(C1=7,C10=1),35,IF(AND(C1=7,C10=2),36,0))) -> 0 | C23: 2 | D23: =IF($B$23=9,D31,IF($B$23=35,D36,IF($B$23=36,D41,"irelevantní"))) -> irelevantní | L23: 22 | M23: 1.4.4 Výstavba a modernizace vodovodních přivaděčů a vodovodních řadů; výstavba úpraven vody; výstavba, intenzifikace nebo revitalizace stávajících vodních zdrojů | N23: 5_4
B24: 1 | D24: =IF($B$23=9,D32,IF($B$23=35,D37,IF($B$23=36,D42,"irelevantní"))) -> irelevantní | L24: 23 | M24: 1.4.5 Intenzifikace úpraven pitné vody | N24: 5_5
D25: =IF($B$23=9,D33,IF($B$23=35,D38,"irelevantní")) -> irelevantní | L25: 24 | M25: 1.5.1 Kompostéry pro předcházení vzniku komunálních odpadů | N25: 6_1
D26: =IF($B$23=9,D34,IF($B$23=35,D39,"irelevantní")) -> irelevantní | L26: 25 | M26: 1.5.2 RE-USE centra pro opětovné použití výrobků včetně aktivit pro opravy a prodlužování životnosti výrobků, podpora prevence vzniku odpadu | N26: 6_2 | P26: 2 | Q26: DPH uznatelné
D27: =IF($B$23=9,D35,IF($B$23=35,D40,"irelevantní")) -> irelevantní | L27: 26 | M27: 1.5.3 Budování infrastruktury potravinových bank | N27: 6_3 | Q27: DPH neuznatelné
L28: 27 | M28: 1.5.4 Podpora prevence vzniku odpadů z jednorázového nádobí nebo jednorázových obalů | N28: 6_4 | Q28: DPH uznatelné = Jsem plátce DPH a nemám zákonný nárok na odpočet DPH ve vztahu k aktivitám projektu
L29: 28 | M29: 1.5.5 Výstavba a modernizace sběrných dvorů, doplnění a zefektivnění systému odděleného sběru/svozu zejména komunálních odpadů včetně podpory door-to-door systémů a zavádění systémů PAYT ("Pay-as-You-Throw") | N29: 6_5 | Q29: Vyber
D30: vyber Aktivitu | L30: 29 | M30: 1.5.6 Podpora třídících a dotřiďovacích systémů (včetně úpravy) pro separaci ostatních odpadů | N30: 6_6 | P30: =IF('1) Kumulativní rozpočet'!I14>10000000,"0,035",IF('1) Kumulativní rozpočet'!I14>3000000,",05",",07")) -> ,07 | Q30: %PP | R30: 7% pod 3 mil
C31: 9_1 | D31: 1.3.1.1 Tvorba nových a obnova stávajících přírodě blízkých vodních prvků v krajině včetně sídel | L31: 30 | M31: 1.5.7 Budování zařízení pro úpravu a zpracování čistírenských odpadních kalů z čistíren odpadních vod včetně úpravy vyčištěných odpadních vod pro jejich opětovné využívání | N31: 6_7 | R31: 5% 3 až 10 mil
C32: 9_2 | D32: 1.3.1.2 Tvorba nových a obnova stávajících vegetačních prvků a struktur, včetně opatření proti vodní a větrné erozi | L32: 31 | M32: 1.5.8 Výstavba a modernizace zařízení pro materiálové využití odpadů | N32: 6_8 | P32: =IF(OR(C1=4,C1=7),P33,P30) -> ,07 | R32: 3,5% nad 10 mil
D33: 1.3.1.3 Úprava lesních porostů směrem k přirozené struktuře a druhové skladbě za účelem posílení jejich stability | L33: 32 | M33: 1.5.9 Výstavba a modernizace zařízení pro energetické využití odpadů, včetně bioplynových stanic pro zpracování odpadů | N33: 6_9 | P33: =IF('1) Kumulativní rozpočet'!I14>10000000,"0,05",",07") -> ,07 | R33: 7% do 10 mil
D34: 1.3.1.4 Zakládání a obnova veřejné sídelní zeleně | L34: 33 | M34: 1.5.10 Budování a modernizace zařízení pro chemickou recyklaci odpadů | N34: 6_10 | P34: SC 1.3, 1.6 | R34: 5% nad 10 mil
D35: 1.3.1.5 Odstranění či eliminace negativních funkcí odvodňovacích zařízení v krajině | L35: 34 | M35: 1.5.11 Budování a modernizace zařízení pro sběr a nakládání s nebezpečnými odpady | N35: 6_11 | P35: 1 | Q35: irelevantní
C36: 35_1 | D36: 1.6.1.1 Péče o přírodní stanoviště a druhy, opatření na podporu ohrožených druhů | L36: 35 | M36: 1.6.1 Podpora přírodních stanovišť a druhů a péče o nejcennější části přírody a krajiny | N36: 7_1 | Q36: Malý podnik
D37: 1.6.1.2 Péče o chráněná území (přírodní dědictví) | L37: 36 | M37: 1.6.2 Zprůchodnění migračních překážek pro živočichy | N37: 7_2 | Q37: Střední podnik
D38: 1.6.1.3 Omezení šíření invazních nepůvodních a expanzivních druhů | L38: 37 | M38: 1.6.3 Modernizace a rozvoj záchranných stanic a záchranných center CITES pro ohrožené druhy živočichů | N38: 7_3 | Q38: Velký podnik
D39: 1.6.1.4 Monitoring ekosystémů, stanovišť a druhů, sběr podkladů, zpracování koncepčních dokumentů pro péči o chráněná území, zajištění územní ochrany chráněných území (přírodního dědictví | L39: 38 | M39: 1.6.4 Náhrada nebo rekonstrukce stacionárních zdrojů znečišťování ovzduší včetně realizace dodatečných technologií a změny technologických postupů | N39: 7_4
D40: 1.6.1.5 Návštěvnická infrastruktura sloužící k usměrnění návštěvníků v chráněných územích a zvýšení povědomí o problematice ochrany přírody | L40: 39 | M40: 1.6.5 Pořízení a modernizace systémů pro posuzování a vyhodnocení úrovně znečištění ovzduší a souvisejících meteorologických aspektů a pořízení a modernizace systémů pro archivaci a zpracování údajů o znečišťování ovzduší | N40: 7_5 | P40: =CHOOSE(P26,'1) Kumulativní rozpočet'!F18-'1) Kumulativní rozpočet'!G18*(1+('1) Kumulativní rozpočet'!E18/100)),'1) Kumulativní rozpočet'!D18-'1) Kumulativní rozpočet'!G18,'1) Kumulativní rozpočet'!F18-'1) Kumulativní rozpočet'!G18*(1+('1) Kumulativní rozpočet'!E18/100))) -> 0 | Q40: CZN PP VP | R40: =P40 -> 0
D41: 1.6.2.1 Zprůchodnění migračních překážek pro vodní živočichy a opatření k omezování jejich úmrtnosti | L41: 40 | M41: 1.6.6 Pořízení a náhrada monitorovacích systémů pro kontinuální měření emisí znečišťujících látek včetně pořízení on-line systémů k jejich prezentaci | N41: 7_6 | P41: =IF((P32*('1) Kumulativní rozpočet'!#REF!))>15000000,15000000,(P32*('1) Kumulativní rozpočet'!I12+'1) Kumulativní rozpočet'!#REF!))) ->  | Q41: % CZN max | R41: =P41 ->  | S41: =R40-R41 ->  | T41: =S41*1.21 -> 
D42: 1.6.2.2 Zprůchodnění migračních překážek pro suchozemské živočichy a opatření k omezování jejich úmrtnosti | L42: 41 | M42: 1.6.7 Průzkum rozsahu znečištění horninového prostředí a rizik s ním spojených, včetně návrhu efektivního řešení | N42: 7_7
L43: 42 | M43: 1.6.8 Odstranění rizik kontaminace ohrožující lidské zdraví, vodní zdroje nebo ekosystémy a rekultivace starých skládek | N43: 7_8 | P43: 10000 | Q43: 21 | R43: =P43*(1+(Q43/100)) -> 12100 | S43: =P43*(1+(Q43/100))+IF(P40>P41,P40-P41,0) -> 
D45: vyber Podaktivitu | S45: =P43*(Q43/100)+P43+IF(P40>P41,P40-P41,0) -> 
D46: 1.3.1.1.1 Vytváření a obnova tůní (mokřadů)
D47: 1.3.1.1.2 Malé vodní nádrže (MVN) | L47: 1 | M47: =IF(AND($B$23=9,$B$24=1),D46,IF(AND($B$23=9,$B$24=2),D50,IF(AND($B$23=35,$B$24=1),D52,"irelevantní"))) -> irelevantní
D48: 1.3.1.1.3 Revitalizace a renaturace vodních toků a niv | M48: =IF(AND($B$23=9,$B$24=1),D47,IF(AND($B$23=9,$B$24=2),D51,IF(AND($B$23=35,$B$24=1),D53,"irelevantní"))) -> irelevantní
D49: 1.3.1.1.4 Nákup pozemků pro podporu renaturačních procesů a revitalizací vodních toků | M49: =IF(AND($B$23=9,$B$24=1),D48,"irelevantní") -> irelevantní
D50: 1.3.1.2.1 Vegetační krajinné prvky (včetně skladebných prvků ÚSES) | M50: =IF(AND($B$23=9,$B$24=1),D49,"irelevantní") -> irelevantní
D51: 1.3.1.2.2 Zavádění půdoochranných technologií
D52: 1.6.1.1.1 Péče o přírodní stanoviště a druhy, opatření na podporu ohrožených druhů
D53: 1.6.1.1.2 Předcházení, minimalizace a náprava škod způsobených vybranými zvláště chráněnými druhy živočichů
A56: =IF(B56=TRUE,1,0) -> 0 | B56: FALSE | C56: více opatření
A57: =IF(B57=TRUE,1,0) -> 0 | B57: FALSE | C57: více aktivit
A58: 0 | B58: FALSE | C58: více podaktivit | D58: 2 | H58: 6 | K58: 9
D59: vyber Opatření #2 | E59: vyber Opatření #3 | F59: vyber Opatření #4 | G59: vyber Opatření #5 | H59: vyber Opatření #6 | I59: vyber Opatření #7 | J59: vyber Opatření #8 | K59: vyber Opatření #9 | L59: vyber Opatření #10 | M59: vyber Opatření #11 | P59: vyber Opatření #2 | Q59: =IF(P59="vyber Opatření #2",0,1) -> 0
D60: =CHOOSE($C$1,"",$M$2,$M$7,$M$10,$M$20,$M$25,$M$36) ->  | P60: vyber Opatření #3 | Q60: =IF(P60="vyber Opatření #3",0,1) -> 0
D61: =CHOOSE($C$1,"",$M$3,$M$8,$M$11,$M$21,$M$26,$M$37) ->  | P61: vyber Opatření #4 | Q61: =IF(P61="vyber Opatření #4",0,1) -> 0
D62: =CHOOSE($C$1,"",$M$4,$M$9,$M$12,$M$22,$M$27,$M$38) ->  | P62: vyber Opatření #5 | Q62: =IF(P62="vyber Opatření #5",0,1) -> 0
D63: =CHOOSE($C$1,"","","",$M$13,$M$23,$M$28,$M$39) ->  | Q63: =SUM(Q59:Q62) -> 0
D64: =CHOOSE($C$1,"","","",$M$14,$M$24,$M$29,$M$40) -> 
D65: =CHOOSE($C$1,"","","",$M$15,"",$M$30,$M$41) ->  | P65: vyber Aktivitu #2 | Q65: =IF(P65="vyber Aktivitu #2",0,1) -> 0
D66: =CHOOSE($C$1,"","","",$M$16,"",$M$31,$M$42) ->  | P66: vyber Aktivitu #3 | Q66: =IF(P66="vyber Aktivitu #3",0,1) -> 0
D67: =CHOOSE($C$1,"","","",$M$17,"",$M$32,$M$43) ->  | P67: vyber Aktivitu #4 | Q67: =IF(P67="vyber Aktivitu #4",0,1) -> 0
D68: =CHOOSE($C$1,"","","",$M$18,"",$M$33,"") ->  | P68: vyber Aktivitu #5 | Q68: =IF(P68="vyber Aktivitu #5",0,1) -> 0
D69: =CHOOSE($C$1,"","","",$M$19,"",$M$34,"") ->  | Q69: =SUM(Q65:Q68) -> 0
D70: =CHOOSE($C$1,"","","","","",$M$35,"") -> 
P71: vyber Podaktivitu #2 | Q71: =IF(P71="vyber Podaktivitu #2",0,1) -> 0
D72: vyber Aktivitu #2 | E72: vyber Aktivitu #3 | F72: vyber Aktivitu #4 | G72: vyber Aktivitu #5 | P72: vyber Podaktivitu #3 | Q72: =IF(P72="vyber Podaktivitu #3",0,1) -> 0
D73: =IF($B$23=9,$D$31,IF($B$23=35,$D$36,IF($B$23=36,$D$41,""))) ->  | E73: =IF($B$23=9,$D$31,IF($B$23=35,$D$36,IF($B$23=36,$D$41,""))) ->  | F73: =IF($B$23=9,$D$31,IF($B$23=35,$D$36,IF($B$23=36,$D$41,""))) ->  | G73: =IF($B$23=9,$D$31,IF($B$23=35,$D$36,IF($B$23=36,$D$41,""))) ->  | P73: vyber Podaktivitu #4 | Q73: =IF(P73="vyber Podaktivitu #4",0,1) -> 0
D74: =IF($B$23=9,$D$32,IF($B$23=35,$D$37,IF($B$23=36,$D$42,""))) ->  | E74: =IF($B$23=9,$D$32,IF($B$23=35,$D$37,IF($B$23=36,$D$42,""))) ->  | F74: =IF($B$23=9,$D$32,IF($B$23=35,$D$37,IF($B$23=36,$D$42,""))) ->  | G74: =IF($B$23=9,$D$32,IF($B$23=35,$D$37,IF($B$23=36,$D$42,""))) ->  | Q74: =SUM(Q71:Q73) -> 0
D75: =IF($B$23=9,$D$33,IF($B$23=35,$D$38,"")) ->  | E75: =IF($B$23=9,$D$33,IF($B$23=35,$D$38,"")) ->  | F75: =IF($B$23=9,$D$33,IF($B$23=35,$D$38,"")) ->  | G75: =IF($B$23=9,$D$33,IF($B$23=35,$D$38,"")) -> 
D76: =IF($B$23=9,$D$34,IF($B$23=35,$D$39,"")) ->  | E76: =IF($B$23=9,$D$34,IF($B$23=35,$D$39,"")) ->  | F76: =IF($B$23=9,$D$34,IF($B$23=35,$D$39,"")) ->  | G76: =IF($B$23=9,$D$34,IF($B$23=35,$D$39,"")) -> 
D77: =IF($B$23=9,$D$35,IF($B$23=35,$D$40,"")) ->  | E77: =IF($B$23=9,$D$35,IF($B$23=35,$D$40,"")) ->  | F77: =IF($B$23=9,$D$35,IF($B$23=35,$D$40,"")) ->  | G77: =IF($B$23=9,$D$35,IF($B$23=35,$D$40,"")) -> 
D79: vyber Podaktivitu #2 | E79: vyber Podaktivitu #3 | F79: vyber Podaktivitu #4
D80: =IF(AND($B$23=9,$B$24=1),$D$46,IF(AND($B$23=9,$B$24=2),$D$50,IF(AND($B$23=35,$B$24=1),$D$52,"irelevantní"))) -> irelevantní | E80: =IF(AND($B$23=9,$B$24=1),$D$46,IF(AND($B$23=9,$B$24=2),$D$50,IF(AND($B$23=35,$B$24=1),$D$52,"irelevantní"))) -> irelevantní | F80: =IF(AND($B$23=9,$B$24=1),$D$46,IF(AND($B$23=9,$B$24=2),$D$50,IF(AND($B$23=35,$B$24=1),$D$52,"irelevantní"))) -> irelevantní
D81: =IF(AND($B$23=9,$B$24=1),$D$47,IF(AND($B$23=9,$B$24=2),$D$51,IF(AND($B$23=35,$B$24=1),$D$53,"irelevantní"))) -> irelevantní | E81: =IF(AND($B$23=9,$B$24=1),$D$47,IF(AND($B$23=9,$B$24=2),$D$51,IF(AND($B$23=35,$B$24=1),$D$53,"irelevantní"))) -> irelevantní | F81: =IF(AND($B$23=9,$B$24=1),$D$47,IF(AND($B$23=9,$B$24=2),$D$51,IF(AND($B$23=35,$B$24=1),$D$53,"irelevantní"))) -> irelevantní
D82: =IF(AND($B$23=9,$B$24=1),$D$48,"") ->  | E82: =IF(AND($B$23=9,$B$24=1),$D$48,"") ->  | F82: =IF(AND($B$23=9,$B$24=1),$D$48,"") -> 
D83: =IF(AND($B$23=9,$B$24=1),$D$49,"") ->  | E83: =IF(AND($B$23=9,$B$24=1),$D$49,"") ->  | F83: =IF(AND($B$23=9,$B$24=1),$D$49,"") -> 

Sheet KR výstup (hidden)
C3: Název žadatele: | D3: 0
C4: Název projektu: | D4: 0
C5: Specifický cíl: | D5: Vyber Specifický cíl
C6: Veřejná podpora: | D6: mimo Veřejnou podporu
C7: DPH uznatelnost: | D7: Vyber
C8: Velikost podniku: | D8: irelevantní
C9: Celkové náklady projektu | D9: zadej výdaje/DPH
C10: Celkové způsobilé výdaje projeku | D10: zadej výdaje/DPH
C11: Celkové nezpůsobilé výdaje projetku | D11: zadej výdaje/DPH
C12: Opatření specifického cíle (hlavní) | D12: Vyber nejprve Specifický cíl a poté hlavní Opatření projektu
C13: Opatření #2 | D13: vyber Opatření #2
C14: Opatření #3 | D14: vyber Opatření #3
C15: Opatření #4 | D15: vyber Opatření #4
C16: Opatření #5 | D16: vyber Opatření #5
C17: Opatření #6 | D17: vyber Opatření #6
C18: Opatření #7 | D18: vyber Opatření #7
C19: Opatření #8 | D19: vyber Opatření #8
C20: Opatření #9 | D20: vyber Opatření #9
C21: Opatření #10 | D21: vyber Opatření #10
C22: Opatření #11 | D22: vyber Opatření #11
C23: Aktivita (hlavní) | D23: irelevantní
C24: Aktivita #2 | D24: vyber Aktivitu #2
C25: Aktivita #3 | D25: vyber Aktivitu #3
C26: Aktivita #4 | D26: vyber Aktivitu #4
C27: Aktivita #5 | D27: vyber Aktivitu #5
C28: Podaktivita (hlavní) | D28: irelevantní
C29: Podaktivita #2 | D29: vyber Podaktivitu #2
C30: Podaktivita #3 | D30: vyber Podaktivitu #3
C31: Podaktivita #4 | D31: vyber Podaktivitu #4
C32: ISKP Přímé inv. a neinv. náklady do limitu PS bez VP či VP s výpočtem paušálu (řádky 1.1.1.1 + 1.1.1.2) | D32: zadej výdaje/DPH
C33: ISKP Přímé inv. a neinv. náklady nad limit PS bez VP či VP s výpočtem paušálu nebo Přímé inv. a neinv. náklady s VP bez výpočtu paušálu (řádky 1.1.3 a 1.1.4) | D33: zadej výdaje/DPH
C34: ISKP Nezpůsobilé inv. a neinv. náklady bez ohledu na VP (řádky 1.2.5 a 1.2.6) | D34: zadej výdaje/DPH
C35: Paušální sazba (bez VP či VP s výpočtem paušálu) | D35: 0
C36: "Projektová příprava" dle skutečných nákladů s limitem dle PS pro VP | D36: 0

Sheet 2) Stanovení jednotkové podpory
A1: Identifikace projektu | C1: Poznámka k vyplnění: Tabulka je optimalizována pro MS Excel 2010 a vyšší. Použití starší verze či jiného programu může způsobit problémy. Editujte pouze zelené buňky a zaškrtávací políčka, vybírejte z rozbalovacích menu. Řiďte se informacemi označenými červeným trojúhelníkem v pravém horním rohu buněk.
B3: Název žadatele | C3: ='1) Kumulativní rozpočet'!C5:F5 -> 0
B4: Název projektu | C4: ='1) Kumulativní rozpočet'!C6:F6 -> 0
B5: Číslo výzvy | C5: 1
B7: Památkově chráněná budova | C7: NE
B8: Budova sloužící pro výchovu a vzdělávání dětí a mladistvých | C8: ANO
B9: DPH je v rámci projektu způsobilým výdajem | C9: =IF('KR zdroj'!$P$26=4,"Nezvoleno na 1. listu",IF('KR zdroj'!$P$26=2,"NE","ANO")) -> NE
B10: Stanovte příslušnou procentní výši DPH pro realizaci | C10: ='1) Kumulativní rozpočet'!E12/100 -> 0.21
A11: TRUE | B11: a) Instalace nuceného větrání s rekuperací
F12: vlastní jednotkový náklad Kč bez DPH/jedn. | G12: hodnota | H12: jednotka | I12: jednotkový náklad bez DPH | J12: k1 | K12: k2 | L12: jednotková dotace za opatření bez DPH | M12: celková dotace za opatření bez DPH | N12: Způsobilé přímé realizační výdaje
B13: Celkový výkon nově instalovaných systémů nuceného větrání - výukové prostory vzdělávacích budov | C13: výkon na jednotku do 1500 m3 | E13: FALSE | H13: počet žáků | I13: ='SJP Pomocné hodnoty'!F17 -> 9800 | J13: =IF(A11=TRUE,'SJP Pomocné hodnoty'!G17+'SJP Pomocné hodnoty'!H17,'SJP Pomocné hodnoty'!G17) -> 0.6 | K13: ='SJP Pomocné hodnoty'!R17 -> 0.6 | L13: =IF(AND($C$7="ANO",E13=TRUE),F13,I13)*J13*K13 -> 3528 | M13: =G13*L13 -> 0 | N13: =G13*IF(E13=TRUE,F13,I13)*J13 -> 0
C14: výkon na jednotku nad 1500 m3 | E14: FALSE | H14: počet žáků | I14: ='SJP Pomocné hodnoty'!F18 -> 9800 | J14: =IF(A12=TRUE,'SJP Pomocné hodnoty'!G18+'SJP Pomocné hodnoty'!H18,'SJP Pomocné hodnoty'!G18) -> 1 | K14: ='SJP Pomocné hodnoty'!R18 -> 0.6 | L14: =IF(AND($C$7="ANO",E14=TRUE),F14,I14)*J14*K14 -> 5880 | M14: 0 | N14: =G14*IF(E14=TRUE,F14,I14)*J14 -> 0
B15: Celkový výkon nově instalovaných systémů nuceného větrání s rekuperací - ostatní | C15: výkon na jednotku do 1500 m3 | E15: FALSE | H15: m3/hod | I15: ='SJP Pomocné hodnoty'!F19 -> 390 | J15: =IF(A13=TRUE,'SJP Pomocné hodnoty'!G19+'SJP Pomocné hodnoty'!H19,'SJP Pomocné hodnoty'!G19) -> 0.6 | K15: ='SJP Pomocné hodnoty'!R19 -> 0.6 | L15: 140.4 | M15: 0 | N15: 0
C16: výkon na jednotku nad 1500 m3 - regulace průtoku ON/OFF | E16: FALSE | H16: m3/hod | I16: ='SJP Pomocné hodnoty'!F20 -> 390 | J16: =IF(A14=TRUE,'SJP Pomocné hodnoty'!G20+'SJP Pomocné hodnoty'!H20,'SJP Pomocné hodnoty'!G20) -> 0.5 | K16: ='SJP Pomocné hodnoty'!R20 -> 0.6 | L16: 117 | M16: 0 | N16: 0
C17: výkon na jednotku nad 1500 m3 - regulace průtoku dle času, % výkonu jednotky a ostatní neuvedené | E17: FALSE | H17: m3/hod | I17: ='SJP Pomocné hodnoty'!F21 -> 390 | J17: =IF(A15=TRUE,'SJP Pomocné hodnoty'!G21+'SJP Pomocné hodnoty'!H21,'SJP Pomocné hodnoty'!G21) -> 0.7 | K17: ='SJP Pomocné hodnoty'!R21 -> 0.6 | L17: 163.8 | M17: 0 | N17: 0
C18: výkon na jednotku nad 1500 m3 - plynulá regulace, např. CO2 | E18: FALSE | H18: m3/hod | I18: ='SJP Pomocné hodnoty'!F22 -> 390 | J18: =IF(A16=TRUE,'SJP Pomocné hodnoty'!G22+'SJP Pomocné hodnoty'!H22,'SJP Pomocné hodnoty'!G22) -> 1 | K18: ='SJP Pomocné hodnoty'!R22 -> 0.6 | L18: 234 | M18: 0 | N18: 0
D20: FALSE
B22: Celková dotace za opatření 2.1 | G22: =IF(A11<>TRUE,0,IF($C$9<>"ANO",SUM(M13:M18),SUM(M13:M18)*(1+$C$10))) -> 0
A23: FALSE | B23: b) Zlepšení kvality vnitřního prostředí
F24: vlastní jednotkový náklad Kč bez DPH/jedn. | G24: hodnota | H24: jednotka | I24: jednotkový náklad bez DPH | J24: k1 | K24: k2 | L24: jednotková dotace za opatření bez DPH | M24: celková dotace za opatření bez DPH | N24: Způsobilé přímé realizační výdaje
B25: Plocha výplní otvorů stíněných nově instalovanými vnějšími nebo meziokenními stínícími prvky orientovanými s odklonem větším než 25°od severu | C25: ruční mechanické ovládání | E25: FALSE | H25: m2 | I25: ='SJP Pomocné hodnoty'!F24 -> 3700 | J25: ='SJP Pomocné hodnoty'!G24 -> 0.6 | K25: ='SJP Pomocné hodnoty'!R24 -> 0.6 | L25: =IF(AND($C$7="ANO",E25=TRUE),F25,I25)*J25*K25 -> 1332 | M25: =G25*L25 -> 0 | N25: =G25*IF(E25=TRUE,F25,I25)*J25 -> 0
C26: ruční elektronické ovládání | E26: FALSE | H26: m2 | I26: ='SJP Pomocné hodnoty'!F25 -> 3700 | J26: ='SJP Pomocné hodnoty'!G25 -> 0.9 | K26: ='SJP Pomocné hodnoty'!R25 -> 0.6 | L26: =IF(AND($C$7="ANO",E26=TRUE),F26,I26)*J26*K26 -> 1998 | M26: =G26*L26 -> 0 | N26: =G26*IF(E26=TRUE,F26,I26)*J26 -> 0
C27: automat. ovlád. na základě meteostanice s rozdělením orientace vůči svět. stranám | E27: FALSE | H27: m2 | I27: ='SJP Pomocné hodnoty'!F26 -> 3700 | J27: ='SJP Pomocné hodnoty'!G26 -> 1 | K27: ='SJP Pomocné hodnoty'!R26 -> 0.6 | L27: 2220 | M27: =G27*L27 -> 0 | N27: 0
B30: Celková dotace za opatření 2.2 | G30: =IF(A11<>TRUE,0,IF($C$9<>"ANO",SUM(M25:M27),SUM(M25:M27)*(1+$C$10))) -> 0
A32: Celkové způsobilé přímé realizační výdaje („CZPRV“) | D32: =IF($C$9<>"ANO",IF(A11<>TRUE,0,SUM(N13:N18))+IF(A23<>TRUE,0,SUM(N25:N27)),(IF(A11<>TRUE,0,SUM(N13:N18)*(1+$C$10))+IF(A23<>TRUE,0,SUM(N25:N27))*(1+$C$10))) -> 0
A34: Celková výše podpory na realizaci | D34: =G22+G30 -> 0
H43: Invented by: Polak & Vrbický
H44: Created by: Urban

Sheet SJP Pomocné hodnoty (hidden)
A1: A | G1: Číselník pro obecné parametry
A2: Úspora primární energie z neobnovitelných zdrojů | C2: 0.3 | D2: 0.4 | G2: 1 | H2: Nepam | J2: =IF('2) Stanovení jednotkové podpory'!$C$7="NE",IF('2) Stanovení jednotkové podpory'!$C$8="NE",IF(AND('2) Stanovení jednotkové podpory'!#REF!=FALSE,'2) Stanovení jednotkové podpory'!#REF!=FALSE),1,3),IF(AND('2) Stanovení jednotkové podpory'!#REF!=FALSE,'2) Stanovení jednotkové podpory'!#REF!=FALSE),2,4)),IF('2) Stanovení jednotkové podpory'!$C$8="NE",IF(AND('2) Stanovení jednotkové podpory'!#REF!=FALSE,#REF!=FALSE),5,7),IF(AND('2) Stanovení jednotkové podpory'!#REF!=FALSE,'2) Stanovení jednotkové podpory'!#REF!=FALSE,'2) Stanovení jednotkové podpory'!#REF!=FALSE),6,8))) -> 
A3: Dosažená hodnota primární energie z neobnovitelných zdrojů dle PENB pro stav po realizaci navržených opatření | C3: 0.85 | D3: 0.7 | G3: 2 | H3: Nepam škola
A4: Průměrný součinitel prostupu tepla obálky budovy | C4: 0.95 | D4: 0.8 | G4: 3 | H4: Nepam EPC
A5: Součinitel prostupu tepla pro měněné stavební prvky vyjma oken, na něž se vztahuje podpora | G5: 4 | H5: Nepam škola EPC
A6: Součinitel prostupu tepla oken, na něž se vztahuje podpora | C6: 0.15 | G6: 5 | H6: Pam
A7: Nejvyšší denní teplota vzduchu v místnosti v letním období | C7: 0.21 | G7: 6 | H7: Pam škola
A8: Koncept větrání | G8: 7 | H8: Pam EPC
C9: ANO | G9: 8 | H9: Pam škola EPC
C10: NE
A11: =IF('2) Stanovení jednotkové podpory'!$A$11=TRUE,1,0)+IF('2) Stanovení jednotkové podpory'!$A$23=TRUE,1,0)+IF('2) Stanovení jednotkové podpory'!#REF!=TRUE,1,0)+IF('2) Stanovení jednotkové podpory'!#REF!=TRUE,1,0) ->  | B11: počet specifických cílů dotčených projektem
B12: Specifický cíl 1.2 (po zatržení je nutno vybrat jedno z opatření v rozbalovacím menu u této buňky vpravo)
B13: 1.2.1 Výstavba a rekonstrukce obnovitelných zdrojů energie pro veřejné budovy
B14: 1.2.2 Výstavba a rekonstrukce obnovitelných zdrojů energie pro zajištění dodávek systémové energie ve veřejném sektoru
F16: jednotkové náklady bez DPH | G16: k1 | R16: k2
A17: Celkový výkon nově instalovaných systémů nuceného větrání - výukové prostory vzdělávacích budov | B17: výkon na jednotku do 1500 m3 | F17: 9800 | G17: 0.6 | R17: 0.6
B18: výkon na jednotku nad 1500 m3 | F18: 9800 | G18: 1 | R18: =$R$17 -> 0.6
A19: Celkový výkon nově instalovaných systémů nuceného větrání s rekuperací - ostatní | B19: výkon na jednotku do 1500 m3 | F19: 390 | G19: 0.6 | R19: =$R$17 -> 0.6
B20: výkon na jednotku nad 1500 m3 - regulace průtoku ON/OFF | F20: 390 | G20: 0.5 | R20: 0.6
B21: výkon na jednotku nad 1500 m3 - regulace průtoku dle času, % výkonu jednotky a ostatní neuvedené | F21: 390 | G21: 0.7 | R21: 0.6
B22: výkon na jednotku nad 1500 m3 - plynulá regulace, např. CO2 | F22: 390 | G22: 1 | R22: 0.6
A23: C
A24: Plocha výplní otvorů stíněných nově instalovanými vnějšími stínícími prvky orientovanými s odklonem větším než 25°od severu | B24: ruční mechanické ovládání | F24: 3700 | G24: 0.6 | H24: 0,6 - ruční mechanické ovládání | R24: 0.6
B25: ruční elektronické ovládání | F25: 3700 | G25: 0.9 | H25: 0,9 - ruční elektronické ovládání | R25: 0.6
B26: automatické ovládání na základě meteostanice s rozdělením orientace vůči světovým stranám | F26: 3700 | G26: 1 | H26: 1,0 - automatické ovládání na základě meteostanice s rozdělením orientace vůči světovým stranám | R26: 0.6
A28: ANO
A29: NE

Sheet 3) Výsledná podpora v AIS
A1: Veřejná podpora
A3: Typ veřejné podpory
A4: 1
I6: Stanovení výše podpory pro De minimis
I8: Předchozí čerpání de minimis v €
I9: Aktuální kurz € | M9: https://commission.europa.eu/funding-tenders/procedures-guidelines-tenders/information-contractors-and-beneficiaries/exchange-rate-inforeuro_cs
I10: Limit pro čerpání v Kč | L10: =IF(A4=2,(300000-L8)*L9,IF(A4=3,(750000-L8)*L9,"")) -> 
E14: FALSE
A17: Porovnání celkové podpory projektu dle pravidel výzvy a pravidel veřejné podpory
E19: Realizace | G19: PP+AD+TDI | I19: Celkem
A20: Dle pravidel výzvy | E20: =IF('1) Kumulativní rozpočet'!D12=0,0,MIN('1) Kumulativní rozpočet'!I13*0.85,'2) Stanovení jednotkové podpory'!D34)) -> 0 | G20: =IF('1) Kumulativní rozpočet'!D12=0,0,IF('2) Stanovení jednotkové podpory'!D32>'1) Kumulativní rozpočet'!I14,(IF(MIN('1) Kumulativní rozpočet'!I13,'2) Stanovení jednotkové podpory'!D32)>10000000,0.035,IF(MIN('1) Kumulativní rozpočet'!I13,'2) Stanovení jednotkové podpory'!D32)>3000000,0.05,0.07))*MIN('1) Kumulativní rozpočet'!I13,'2) Stanovení jednotkové podpory'!D32))*0.85,(IF(MIN('1) Kumulativní rozpočet'!I13,'2) Stanovení jednotkové podpory'!D32)>10000000,0.035,IF(MIN('1) Kumulativní rozpočet'!I13,'2) Stanovení jednotkové podpory'!D32)>3000000,0.05,0.07))*MIN('1) Kumulativní rozpočet'!I13,'2) Stanovení jednotkové podpory'!D32)))) -> 0 | I20: =SUM(E20:G20) -> 0
A22: Dle pravidel veřejné podpory | E22: =IF('1) Kumulativní rozpočet'!D12=0,"",IF($A$4=1,"Irelevantní",IF(OR($A$4=2,$A$4=3),IF(I20>L10,IF(L10<E20,L10,E20),E20),'2) Stanovení jednotkové podpory'!D32*IF($A$4=5,IF(A9=1,IF(A12=3,'VP pomocné hodnoty'!D25,IF(A12=2,'VP pomocné hodnoty'!D26,'VP pomocné hodnoty'!D27)),IF(A9=2,IF(A12=3,'VP pomocné hodnoty'!E25,IF(A12=2,'VP pomocné hodnoty'!E26,'VP pomocné hodnoty'!E27)),IF(A12=3,'VP pomocné hodnoty'!F25,IF(A12=2,'VP pomocné hodnoty'!F26,'VP pomocné hodnoty'!F27)))),IF($A$4=6,IF(A9=1,IF(A12=3,'VP pomocné hodnoty'!D28,IF(A12=2,'VP pomocné hodnoty'!D29,'VP pomocné hodnoty'!D30)),IF(A9=2,IF(A12=3,'VP pomocné hodnoty'!E28,IF(A12=2,'VP pomocné hodnoty'!E29,'VP pomocné hodnoty'!E30)),IF(A12=3,'VP pomocné hodnoty'!F28,IF(A12=2,'VP pomocné hodnoty'!F29,'VP pomocné hodnoty'!F30)))),IF(A4=7,IF(A9=1,IF(A12=3,'VP pomocné hodnoty'!D31,IF(A12=2,'VP pomocné hodnoty'!D32,'VP pomocné hodnoty'!D33)),IF(A9=2,IF(A12=3,'VP pomocné hodnoty'!E31,IF(A12=2,'VP pomocné hodnoty'!E32,'VP pomocné hodnoty'!E33)),IF(A12=3,'VP pomocné hodnoty'!F31,IF(A12=2,'VP pomocné hodnoty'!F32,'VP pomocné hodnoty'!F33)))),1)))))) ->  | G22: =IF('1) Kumulativní rozpočet'!D12=0,"",IF($A$4=1,"Irelevantní",'2) Stanovení jednotkové podpory'!D32*IF('2) Stanovení jednotkové podpory'!D32>10000000,0.035,IF('2) Stanovení jednotkové podpory'!D32>3000000,0.05,0.07))*IF($A$4=5,IF(A9=1,IF(A12=3,'VP pomocné hodnoty'!D25,IF(A12=2,'VP pomocné hodnoty'!D26,'VP pomocné hodnoty'!D27)),IF(A9=2,IF(A12=3,'VP pomocné hodnoty'!E25,IF(A12=2,'VP pomocné hodnoty'!E26,'VP pomocné hodnoty'!E27)),IF(A12=3,'VP pomocné hodnoty'!F25,IF(A12=2,'VP pomocné hodnoty'!F26,'VP pomocné hodnoty'!F27)))),IF($A$4=6,IF(A9=1,IF(A12=3,'VP pomocné hodnoty'!D28,IF(A12=2,'VP pomocné hodnoty'!D29,'VP pomocné hodnoty'!D30)),IF(A9=2,IF(A12=3,'VP pomocné hodnoty'!E28,IF(A12=2,'VP pomocné hodnoty'!E29,'VP pomocné hodnoty'!E30)),IF(A12=3,'VP pomocné hodnoty'!F28,IF(A12=2,'VP pomocné hodnoty'!F29,'VP pomocné hodnoty'!F30)))),IF(A4=7,IF(A9=1,IF(A12=3,'VP pomocné hodnoty'!D31,IF(A12=2,'VP pomocné hodnoty'!D32,'VP pomocné hodnoty'!D33)),IF(A9=2,IF(A12=3,'VP pomocné hodnoty'!E31,IF(A12=2,'VP pomocné hodnoty'!E32,'VP pomocné hodnoty'!E33)),IF(A12=3,'VP pomocné hodnoty'!F31,IF(A12=2,'VP pomocné hodnoty'!F32,'VP pomocné hodnoty'!F33)))),IF(OR($A$4=2,$A$4=3),IF((I20)>L10,IF(E20<L10,(L10-E20)/'2) Stanovení jednotkové podpory'!D32,0),1),1)))))) ->  | I22: =IF('1) Kumulativní rozpočet'!D12=0,"",SUM(E22:G22)) -> 
A24: Výsledná celková podpora za projekt | E24: =MIN(E20,E22) -> 0 | G24: =MIN(G20,G22) -> 0 | I24: =SUM(E24:G24) -> 0
A27: Rozpočet v AIS
A33: > 1. | B33: > Celkové výdaje | H33: =H37+H35 -> 0 | J33: =J35+J37 -> 0
A35: >> 1.1.1 + 1.2.1 | B35: >> Celkové výdaje - Realizační | H35: ='1) Kumulativní rozpočet'!F13 -> 0 | J35: =MIN('1) Kumulativní rozpočet'!I13,'2) Stanovení jednotkové podpory'!D32) -> 0 | L35: POZOR, v rozpočtu v AIS nutno tutu položku rozdělit na investiční a neinvestiční část
A37: >> 1.1.2 + 1.2.2 | B37: >> Celkové výdaje - Projektová příprava, autorský a technický dozor | H37: ='1) Kumulativní rozpočet'!D17 -> 0 | J37: =IF('1) Kumulativní rozpočet'!I13<'2) Stanovení jednotkové podpory'!D32,H37,'2) Stanovení jednotkové podpory'!D32*IF('2) Stanovení jednotkové podpory'!D32>10000000,0.035,IF('2) Stanovení jednotkové podpory'!D32>3000000,0.05,0.07))) -> 0 | L37: POZOR, v rozpočtu v AIS nutno tutu položku rozdělit na investiční a neinvestiční část

Sheet VP pomocné hodnoty (hidden)
A1: 1 | B1: mimo rámec veřejné podpory
A2: 2 | B2: De minimis 1407/2013
A3: 3 | B3: De minimis 360/2012 (SOHZ)
A4: 4 | B4: Rozhodnutí SOHZ
A5: 5 | B5: GBER (článek 38) Investiční podpora na opatření ke zvýšení energetické účinnosti
A6: 6 | B6: GBER (článek 40) Investiční podpora na vysokoúčinnou kombinovanou výrobu tepla a elektrické energie
A7: 7 | B7: GBER (článek 41) Investiční podpora energie z obnovitelných zdrojů
A8: 8 | B8: GBER (článek 53) Podpora kultury a zachování kulturního dědictví
A9: 9 | B9: GBER (článek 55) Podpora na sportovní a multifunkční rekreační infrastrukturu
A10: 10 | B10: GBER (článek 56) Investiční podpora na místní infrastrukturu
A12: 1 | B12: Malý podnik
A13: 2 | B13: Střední podnik
A14: 3 | B14: Velký podnik a ostatní
A16: 1 | B16: Praha (bez bonifikace)
A17: 2 | B17: regiony dle čl. 107 odst. 3 písm. a) Smlouvy o fungování EU
A18: 3 | B18: regiony dle čl. 107 odst. 3 písm. c) Smlouvy o fungování EU
B20: Předpis/článek | D20: Max VP v Praze | E20: Max VP pro regiony dle čl. 107 odst. 3 písm. a) Smlouvy o fungování EU (1) | F20: Max VP pro regiony dle čl. 107 odst. 3 písm. c) Smlouvy o fungování EU (2) | G20: Notifikační práh
B21: De minimis 1407/2013 | D21: 1 | E21: 1 | F21: 1 | G21: n/r
B22: De minimis 360/2012 | D22: 1 | E22: 1 | F22: 1 | G22: n/r
B24: Rozhodnutí SOHZ (1) | D24: 1 | E24: 1 | F24: 1 | G24: n/r
B25: GBER 38 | C25: VP a O | D25: 0.3 | E25: =CHOOSE(K26,0.45,0.4,0.6) ->  | F25: =CHOOSE(K26,0.35,0.3,0.5) ->  | G25: 15 mil. EUR na podnik a projekt | I25: počet opatření | K25: =IF(COUNTIF('2) Stanovení jednotkové podpory'!#REF!,"<0")+COUNTIF('2) Stanovení jednotkové podpory'!#REF!,">0")>0,1,0)+IF(COUNTIF('2) Stanovení jednotkové podpory'!#REF!,"<0")+COUNTIF('2) Stanovení jednotkové podpory'!#REF!,">0")>0,1,0)+IF(COUNTIF('2) Stanovení jednotkové podpory'!#REF!,"<0")+COUNTIF('2) Stanovení jednotkové podpory'!#REF!,">0")>0,1,0)+IF(COUNTIF('2) Stanovení jednotkové podpory'!#REF!,"<0")+COUNTIF('2) Stanovení jednotkové podpory'!#REF!,">0")>0,1,0)+IF(COUNTIF('2) Stanovení jednotkové podpory'!#REF!,"<0")+COUNTIF('2) Stanovení jednotkové podpory'!#REF!,">0")>0,1,0)+IF(COUNTIF('2) Stanovení jednotkové podpory'!#REF!,"<0")+COUNTIF('2) Stanovení jednotkové podpory'!#REF!,">0")>0,1,0)+IF(COUNTIF('2) Stanovení jednotkové podpory'!#REF!,"<0")+COUNTIF('2) Stanovení jednotkové podpory'!#REF!,">0")>0,1,0) -> 
C26: SP | D26: =D25+0.1 -> 0.4 | E26: =E25+0.1 ->  | H26: stanovení výše podpory GBER 38 | K26: =IF('2) Stanovení jednotkové podpory'!A11=TRUE,IF(K25<2,2,IF('2) Stanovení jednotkové podpory'!#REF!/'2) Stanovení jednotkové podpory'!#REF!<=0.6,3,1)),1) -> 
C27: MP | D27: =D25+0.2 -> 0.5 | E27: =E25+0.2 -> 
B28: GBER 40 | C28: VP a O | D28: 0.45 | E28: 0.6 | F28: 0.5 | G28: 15 mil. EUR na podnik a projekt
C29: SP | D29: =D28+0.1 -> 0.55 | E29: =E28+0.1 -> 0.7 | F29: 0.6
C30: MP | D30: =D28+0.2 -> 0.65 | E30: =E28+0.2 -> 0.8 | F30: 0.7
B31: GBER 41 | C31: VP a O | D31: 0 | E31: 0.45 | F31: 0.45 | G31: 15 mil. EUR na podnik a projekt | H31: upraveno po změně limitů GBER
C32: SP | D32: 0 | E32: =E31+0.1 -> 0.55 | F32: 0.55 | H32: upraveno po změně limitů GBER
C33: MP | D33: 0 | E33: =E31+0.2 -> 0.65 | F33: 0.65 | H33: upraveno po změně limitů GBER
B34: GBER 41 – malá zařízení | C34: VP a O | D34: 0.3 | E34: 0.45 | F34: 0.35 | G34: 15 mil. EUR na podnik a projekt
C35: SP | D35: =D34+0.1 -> 0.4 | E35: =E34+0.1 -> 0.55 | F35: 0.45
C36: MP | D36: =D34+0.2 -> 0.5 | E36: =E34+0.2 -> 0.65 | F36: 0.55
B37: GBER 53 | D37: 1 | E37: 1 | F37: 1 | G37: 150 mil. EUR na projekt
B38: GBER 55 | D38: 1 | E38: 1 | F38: 1 | G38: 30 mil. EUR nebo CZV nepřesáhnou 100 mil. EUR
B39: GBER 56 | D39: 1 | E39: 1 | F39: 1 | G39: 10 mil. EUR nebo výdaje na projekt přesahující 20 mil. EUR
B42: (1) Pouze pro subjekty pověřené výkonem služby v obecném hospodářském zájmu.
